[Event "EIRCC 2019"]
[Site "Tallinn"]
[Date "2019.12.06"]
[Round "11.24"]
[White "Lazavik, Denis"]
[Black "Potapov, Alexander"]
[Result "1-0"]
[ECO "A80"]
[WhiteElo "2201"]
[BlackElo "2359"]
[Annotator "RC"]
[PlyCount "177"]
[EventDate "2019.12.05"]
[EventType "swiss"]
[EventCountry "EST"]
[SourceTitle "playchess.com"]
[Source "ChessBase"]
[SourceQuality "1"]
[TimeControl "900+10"]

1. d4 {[%emt 0:00:00]} f5 {[%emt 0:00:00]} 2. Nf3 {[%emt 0:00:00]} d6 {[%emt 0:00:02]} 3. g3 {[%emt 0:00:04]} Nf6 {[%emt 0:00:01]} 4. Bg2 {[%emt 0:00:02]} g6 {[%emt 0:00:01]} 5. O-O {[%emt 0:00:04]} Bg7 {[%emt 0:00:02]} 6. b3 {[%emt 0:00:02]} O-O {[%emt 0:00:03]} 7. Bb2 {[%emt 0:00:02]} Ne4 {[%emt 0:00:38]} 8. Nbd2 {[%emt 0:00:23]} Nc6 {[%emt 0:00:06]} 9. Ne1 {[%emt 0:00:27]} Nxd2 {[%emt 0:03:21]} 10. Qxd2 {[%emt 0:00:02]} e5 {[%emt 0:00:01]} 11. Bd5+ {[%emt 0:00:07]} Kh8 {[%emt 0:00:01]} 12. Bxc6 {[%emt 0:00:02]} bxc6 {[%emt 0:00:01]} 13. dxe5 {[%emt 0:00:04]} f4 {[%emt 0:01:40]} 14. Nf3 {[%emt 0:04:42]} Bg4 {[%emt 0:00:55]} 15. c4 {[%emt 0:02:13]} Bxf3 {[%emt 0:01:19]} 16. exf3 {[%emt 0:00:03]} dxe5 {[%emt 0:00:01]} 17. Qe2 {[%emt 0:00:07]} Qf6 {[%emt 0:00:58]} 18. Rad1 {[%emt 0:00:23]} Rad8 {[%emt 0:02:27]} 19. Kg2 {[%emt 0:00:12]} fxg3 {[%emt 0:01:11]} 20. fxg3 {[%emt 0:00:08]} Qf5 {[%emt 0:02:29]} 21. Qe4 {[%emt 0:00:22]} Kg8 {[%emt 0:00:17]} 22. Ba3 {[%emt 0:00:30]} Rfe8 {[%emt 0:00:21]} 23. Bc5 {[%emt 0:00:29]} a6 {[%emt 0:00:13]} 24. Bf2 {[%emt 0:00:43]} Qxe4 {[%emt 0:00:12]} 25. fxe4 {[%emt 0:00:02]} Bf8 {[%emt 0:00:10]} 26. Kf3 {[%emt 0:00:48]} Kf7 {[%emt 0:00:15]} 27. Ke2 {[%emt 0:00:07]} Ke6 {[%emt 0:00:01]} 28. Rxd8 {[%emt 0:00:10]} Rxd8 {[%emt 0:00:01]} 29. Rd1 {[%emt 0:00:02]} Rb8 {[%emt 0:00:11]} 30. Rd3 {[%emt 0:00:08]} h5 {[%emt 0:00:18]} 31. h3 {[%emt 0:00:15]} a5 {[%emt 0:00:01]} 32. a4 {[%emt 0:00:25]} Bb4 {[%emt 0:00:07]} 33. Be3 {[%emt 0:00:04]} Rf8 {[%emt 0:01:03]} 34. Bg5 {[%emt 0:00:58]} Bc5 {[%emt 0:00:47]} 35. Rf3 {[%emt 0:00:13]} Rxf3 {[%emt 0:00:49]} 36. Kxf3 {[%emt 0:00:02]} Bb4 {[%emt 0:00:02]} 37. Ke2 {[%emt 0:00:04]} Kd6 {[%emt 0:00:06]} 38. Be3 {[%emt 0:00:05]} c5 {[%emt 0:00:28]} 39. Kf3 {[%emt 0:00:15]} Ke6 {[%emt 0:00:02]} 40. Bg5 {[%emt 0:00:04]} c6 {[%emt 0:00:04]} 41. g4 {[%emt 0:00:13]} hxg4+ {[%emt 0:00:11]} 42. Kxg4 {[%emt 0:00:09]} Be1 {[%emt 0:00:08]} 43. Bd8 {[%emt 0:00:06]} Bd2 {[%emt 0:00:24]} 44. Bb6 {[%emt 0:00:05]} Kd6 {[%emt 0:00:01]} 45. Bd8 {[%emt 0:00:31]} Kd7 {[%emt 0:00:10]} 46. Bh4 {[%emt 0:00:03]} Ke6 {[%emt 0:00:22]} 47. Bf2 {[%emt 0:00:02]} Kd6 {[%emt 0:00:02]} 48. h4 {[%emt 0:00:08]} Ke6 {[%emt 0:00:25]} 49. Bxc5 {[%emt 0:00:03]} Kf6 {[%emt 0:00:03]} 50. Bf2 {[%emt 0:00:20]} Ke6 {[%emt 0:00:04]} 51. Kf3 {[%emt 0:00:26]} Kd6 {[%emt 0:00:32]} 52. Kg3 {[%emt 0:01:26]} Ke6 {[%emt 0:00:12]} 53. Kg4 {[%emt 0:00:02]} Kd6 {[%emt 0:00:10]} 54. Kf3 {[%emt 0:00:11]} Bc3 {[%emt 0:00:14]} 55. Ke2 {[%emt 0:00:59]} Bb4 {[%emt 0:00:02]} 56. Be3 {[%emt 0:01:36]} Bc3 {[%emt 0:00:05]} 57. Kf3 {[%emt 0:00:02]} Ke6 {[%emt 0:00:13]} 58. Kg4 {[%emt 0:00:04]} Kf6 {[%emt 0:00:22]} 59. Bb6 {[%emt 0:02:17]} Bd2 {[%emt 0:00:08]} 60. Bc7 {[%emt 0:00:02]} Ke6 {[%emt 0:00:06]} 61. Bd8 {[%emt 0:00:52]} Bc3 {[%emt 0:00:16]} 62. Kg5 {[%emt 0:00:16]} Kf7 {[%emt 0:00:01]} 63. Bb6 {[%emt 0:00:19]} Bd2+ {[%emt 0:00:01]} 64. Kg4 {[%emt 0:00:02]} Ke6 {[%emt 0:00:01]} 65. h5 {[%emt 0:00:21]} gxh5+ {[%emt 0:00:01]} 66. Kxh5 {[%emt 0:00:01]} Bb4 {[%emt 0:00:05]} 67. Be3 {[%emt 0:00:04]} Bc3 {[%emt 0:00:02]} 68. Kg4 {[%emt 0:00:02]} Bb4 {[%emt 0:00:06]} 69. Kf3 {[%emt 0:00:01]} Kd6 {[%emt 0:00:08]} 70. Ke2 {[%emt 0:00:04]} Bc3 {[%emt 0:00:07]} 71. Kd3 {[%emt 0:00:08]} Bb4 {[%emt 0:00:05]} 72. Bh6 {[%emt 0:00:41]} Be1 {[%emt 0:00:41]} 73. Bf8+ {[%emt 0:00:04]} Kd7 {[%emt 0:00:19]} 74. Ba3 {[%emt 0:00:14]} Kc7 {[%emt 0:00:12]} 75. c5 {[%emt 0:00:25]} Bf2 {[%emt 0:00:24]} 76. Bb2 {[%emt 0:00:06]} Bxc5 {[%emt 0:00:08]} 77. Bxe5+ {[%emt 0:00:02]} Kd7 {[%emt 0:00:08]} 78. Kc4 {[%emt 0:00:01]} Bb6 {[%emt 0:00:01]} 79. Bd4 {[%emt 0:00:02]} Bc7 {[%emt 0:00:13]} 80. Kc5 {[%emt 0:00:17]} Bd8 {[%emt 0:00:09]} 81. e5 {[%emt 0:00:10]} Be7+ {[%emt 0:00:26]} 82. Kb6 {[%emt 0:00:06]} Bb4 {[%emt 0:00:01]} 83. e6+ {[%emt 0:00:25]} Kxe6 {[%emt 0:00:04]} 84. Kxc6 {[%emt 0:00:01]} Bd2 {[%emt 0:00:12]} 85. Bb6 {[%emt 0:00:02]} Be1 {[%emt 0:00:06]} 86. Kb5 {[%emt 0:00:02]} Kd7 {[%emt 0:00:01]} 87. Bxa5 {[%emt 0:00:02]} Bh4 {[%emt 0:00:07]} 88. Ka6 {[%emt 0:00:11]} Bf2 {[%emt 0:00:27]} 89. Kb7 {[%emt 0:00:03]} 1-0

[Event "EIRCC 2019"]
[Site "Tallinn"]
[Date "2019.12.06"]
[Round "11.26"]
[White "Saveliev, Alexei"]
[Black "Sanal, Vahap"]
[Result "0-1"]
[ECO "C88"]
[WhiteElo "2312"]
[BlackElo "2597"]
[Annotator "ChessBase"]
[PlyCount "56"]
[EventDate "2019.12.05"]
[EventType "swiss"]
[EventCountry "EST"]
[SourceTitle "playchess.com"]
[Source "ChessBase"]
[SourceQuality "1"]
[TimeControl "900+10"]

1. e4 {[%emt 0:00:00]} e5 {[%emt 0:00:01]} 2. Nf3 {[%emt 0:00:00]} Nc6 {[%emt 0:00:01]} 3. Bb5 {[%emt 0:00:00]} a6 {[%emt 0:00:07]} 4. Ba4 {[%emt 0:00:00]} Nf6 {[%emt 0:00:01]} 5. O-O {[%emt 0:00:02]} Be7 {[%emt 0:00:02]} 6. Re1 {[%emt 0:00:01]} b5 {[%emt 0:00:01]} 7. Bb3 {[%emt 0:00:01]} O-O {[%emt 0:00:02]} 8. a4 {[%emt 0:00:08]} Bb7 {[%emt 0:00:10]} 9. d3 {[%emt 0:00:47]} d6 {[%emt 0:00:08]} 10. c3 {[%emt 0:00:11]} Na5 {[%emt 0:00:04]} 11. Bc2 {[%emt 0:00:01]} c5 {[%emt 0:00:01]} 12. Nbd2 {[%emt 0:00:06]} Nc6 {[%emt 0:00:03]} 13. Nf1 {[%emt 0:00:32]} Re8 {[%emt 0:00:04]} 14. Ng3 {[%emt 0:01:11]} g6 {[%emt 0:00:16]} 15. d4 {[%emt 0:01:43]} cxd4 {[%emt 0:00:05]} 16. cxd4 {[%emt 0:00:01]} Nxd4 {[%emt 0:00:04]} 17. Nxd4 {[%emt 0:00:02]} exd4 {[%emt 0:00:01]} 18. Qxd4 {[%emt 0:01:26]} Rc8 {[%emt 0:00:01]} 19. Bd3 {[%emt 0:01:36]} d5 {[%emt 0:00:03]} 20. axb5 {[%emt 0:07:17]} Bc5 {[%emt 0:00:27]} 21. Qa4 {[%emt 0:00:00]} dxe4 {[%emt 0:00:47]} 22. Be2 {[%emt 0:01:39]} Qb6 {[%emt 0:01:21]} 23. Rf1 {[%emt 0:00:08]} a5 {[%emt 0:00:26]} 24. Bg5 {[%emt 0:00:32]} e3 {[%emt 0:00:55]} 25. fxe3 {[%emt 0:00:31]} Bxe3+ {[%emt 0:00:01]} 26. Bxe3 {[%emt 0:00:07]} Qxe3+ {[%emt 0:00:03]} 27. Kh1 {[%emt 0:00:04]} Ne4 {[%emt 0:00:23]} 28. Bf3 {[%emt 0:00:35]} Nf2+ {[%emt 0:00:12]} 0-1

[Event "EIRCC 2019"]
[Site "Tallinn"]
[Date "2019.12.06"]
[Round "11.27"]
[White "Kukk, Sander"]
[Black "Babula, Vlastimil"]
[Result "0-1"]
[ECO "A01"]
[WhiteElo "2313"]
[BlackElo "2559"]
[Annotator "ChessBase"]
[PlyCount "106"]
[EventDate "2019.12.05"]
[EventType "swiss"]
[EventCountry "EST"]
[SourceTitle "playchess.com"]
[Source "ChessBase"]
[SourceQuality "1"]
[TimeControl "900+10"]

1. b3 {[%emt 0:00:00]} e5 {[%emt 0:00:00]} 2. Bb2 {[%emt 0:00:00]} Nc6 {[%emt 0:00:00]} 3. e3 {[%emt 0:00:00]} Nf6 {[%emt 0:00:17]} 4. Bb5 {[%emt 0:00:04]} Bd6 {[%emt 0:00:15]} 5. Na3 {[%emt 0:00:04]} a6 {[%emt 0:00:52]} 6. Bxc6 {[%emt 0:00:29]} dxc6 {[%emt 0:00:03]} 7. Nc4 {[%emt 0:00:02]} Qe7 {[%emt 0:00:07]} 8. Nxd6+ {[%emt 0:00:02]} cxd6 {[%emt 0:00:04]} 9. h3 {[%emt 0:00:02]} c5 {[%emt 0:00:32]} 10. d3 {[%emt 0:00:12]} b5 {[%emt 0:00:38]} 11. Nf3 {[%emt 0:01:00]} Bb7 {[%emt 0:01:24]} 12. O-O {[%emt 0:00:35]} O-O {[%emt 0:00:08]} 13. e4 {[%emt 0:02:22]} Ne8 {[%emt 0:00:09]} 14. Nh2 {[%emt 0:00:26]} f5 {[%emt 0:00:08]} 15. f3 {[%emt 0:00:02]} Nc7 {[%emt 0:00:22]} 16. c4 {[%emt 0:00:41]} Ne6 {[%emt 0:00:15]} 17. Bc1 {[%emt 0:00:02]} Bc6 {[%emt 0:00:39]} 18. Be3 {[%emt 0:00:02]} a5 {[%emt 0:00:04]} 19. Qc2 {[%emt 0:00:07]} g6 {[%emt 0:00:48]} 20. Rab1 {[%emt 0:01:16]} b4 {[%emt 0:01:56]} 21. a3 {[%emt 0:01:12]} bxa3 {[%emt 0:00:44]} 22. Ra1 {[%emt 0:00:01]} a4 {[%emt 0:00:06]} 23. Rxa3 {[%emt 0:00:11]} axb3 {[%emt 0:00:07]} 24. Qxb3 {[%emt 0:00:02]} Rxa3 {[%emt 0:01:03]} 25. Qxa3 {[%emt 0:00:01]} Ra8 {[%emt 0:00:05]} 26. Qb2 {[%emt 0:00:02]} Qa7 {[%emt 0:01:00]} 27. Rb1 {[%emt 0:00:01]} Kf7 {[%emt 0:01:38]} 28. Nf1 {[%emt 0:00:07]} Ke7 {[%emt 0:00:17]} 29. Qf2 {[%emt 0:00:18]} f4 {[%emt 0:00:38]} 30. Qh4+ {[%emt 0:00:15]} Ke8 {[%emt 0:00:05]} 31. Bf2 {[%emt 0:00:15]} Qe7 {[%emt 0:00:07]} 32. Qh6 {[%emt 0:00:10]} Kd7 {[%emt 0:00:22]} 33. Nd2 {[%emt 0:02:16]} Qg7 {[%emt 0:00:43]} 34. Qxg7+ {[%emt 0:00:55]} Nxg7 {[%emt 0:00:03]} 35. Kf1 {[%emt 0:00:01]} Ne6 {[%emt 0:00:18]} 36. Ke2 {[%emt 0:00:04]} Kc7 {[%emt 0:00:12]} 37. Rb2 {[%emt 0:00:13]} Ra1 {[%emt 0:00:32]} 38. Nb1 {[%emt 0:00:01]} Nd4+ {[%emt 0:00:17]} 39. Bxd4 {[%emt 0:00:29]} cxd4 {[%emt 0:00:17]} 40. Kf2 {[%emt 0:00:44]} Ba4 {[%emt 0:00:24]} 41. Ke2 {[%emt 0:00:20]} g5 {[%emt 0:00:06]} 42. Nd2 {[%emt 0:01:05]} Bd1+ {[%emt 0:00:29]} 43. Kf2 {[%emt 0:00:01]} Rc1 {[%emt 0:00:13]} 44. Ra2 {[%emt 0:01:15]} Kb7 {[%emt 0:00:06]} 45. Rb2+ {[%emt 0:00:02]} Kc6 {[%emt 0:00:18]} 46. c5 {[%emt 0:01:48]} Kxc5 {[%emt 0:00:39]} 47. Rb7 {[%emt 0:01:15]} Rc3 {[%emt 0:00:05]} 48. Ke1 {[%emt 0:00:42]} Bc2 {[%emt 0:00:04]} 49. Rxh7 {[%emt 0:00:05]} Bxd3 {[%emt 0:00:07]} 50. Rc7+ {[%emt 0:00:34]} Kb6 {[%emt 0:00:37]} 51. Rd7 {[%emt 0:00:22]} Rc1+ {[%emt 0:00:11]} 52. Kf2 {[%emt 0:00:01]} Rd1 {[%emt 0:00:08]} 53. Nb3 {[%emt 0:00:02]} Rf1# 0-1

[Event "EIRCC 2019"]
[Site "Tallinn"]
[Date "2019.12.06"]
[Round "11.29"]
[White "Stocek, Jiri"]
[Black "Kiik, Kalle"]
[Result "1-0"]
[ECO "D02"]
[WhiteElo "2532"]
[BlackElo "2295"]
[Annotator "ChessBase"]
[PlyCount "93"]
[EventDate "2019.12.05"]
[EventType "swiss"]
[EventCountry "EST"]
[SourceTitle "playchess.com"]
[Source "ChessBase"]
[SourceQuality "1"]
[TimeControl "900+10"]

1. d4 {[%emt 0:00:00]} d5 {[%emt 0:00:00]} 2. Nf3 {[%emt 0:00:00]} c5 {[%emt 0:00:00]} 3. c4 {[%emt 0:00:57]} e6 {[%emt 0:00:00]} 4. cxd5 {[%emt 0:00:03]} exd5 {[%emt 0:00:00]} 5. Bg5 {[%emt 0:00:03]} Be7 {[%emt 0:00:04]} 6. Bxe7 {[%emt 0:00:12]} Nxe7 {[%emt 0:00:03]} 7. dxc5 {[%emt 0:00:04]} Qa5+ {[%emt 0:00:02]} 8. Nbd2 {[%emt 0:00:14]} Nbc6 {[%emt 0:00:20]} 9. e3 {[%emt 0:00:30]} Qxc5 {[%emt 0:00:12]} 10. Be2 {[%emt 0:01:48]} O-O {[%emt 0:00:19]} 11. O-O {[%emt 0:00:04]} Bf5 {[%emt 0:00:04]} 12. a3 {[%emt 0:00:22]} Rad8 {[%emt 0:00:48]} 13. Rc1 {[%emt 0:02:19]} Qd6 {[%emt 0:00:43]} 14. Nb3 {[%emt 0:00:10]} Rfe8 {[%emt 0:00:55]} 15. Nfd4 {[%emt 0:00:14]} Bc8 {[%emt 0:00:20]} 16. Bb5 {[%emt 0:00:19]} Qg6 {[%emt 0:00:30]} 17. Qc2 {[%emt 0:00:37]} Qg5 {[%emt 0:01:01]} 18. Rfe1 {[%emt 0:02:06]} Rd6 {[%emt 0:00:22]} 19. f4 {[%emt 0:00:48]} Qh5 {[%emt 0:00:47]} 20. Be2 {[%emt 0:01:17]} Qh6 {[%emt 0:01:42]} 21. Bf3 {[%emt 0:00:41]} Kf8 {[%emt 0:01:10]} 22. Rcd1 {[%emt 0:01:00]} Red8 {[%emt 0:00:55]} 23. Nxc6 {[%emt 0:00:42]} bxc6 {[%emt 0:02:28]} 24. Nd4 {[%emt 0:00:03]} g5 {[%emt 0:00:36]} 25. g3 {[%emt 0:00:48]} g4 {[%emt 0:00:31]} 26. Bg2 {[%emt 0:00:04]} Qh5 {[%emt 0:00:32]} 27. Rd2 {[%emt 0:00:38]} Rh6 {[%emt 0:00:11]} 28. Bf1 {[%emt 0:00:08]} Bf5 {[%emt 0:00:32]} 29. Qc5 {[%emt 0:00:12]} Be4 {[%emt 0:00:34]} 30. Qxa7 {[%emt 0:00:24]} Rhd6 {[%emt 0:01:31]} 31. Qc5 {[%emt 0:00:11]} Qg6 {[%emt 0:00:02]} 32. a4 {[%emt 0:00:24]} h5 {[%emt 0:00:02]} 33. a5 {[%emt 0:00:02]} h4 {[%emt 0:00:02]} 34. a6 {[%emt 0:00:11]} Qh5 {[%emt 0:00:21]} 35. Bg2 {[%emt 0:00:45]} Bf3 {[%emt 0:01:33]} 36. Rf1 {[%emt 0:01:12]} hxg3 {[%emt 0:00:42]} 37. hxg3 {[%emt 0:00:13]} Rh6 {[%emt 0:00:13]} 38. Nxf3 {[%emt 0:00:17]} gxf3 {[%emt 0:00:04]} 39. Bxf3 {[%emt 0:00:03]} Qg6 {[%emt 0:00:15]} 40. g4 {[%emt 0:00:22]} Ke8 {[%emt 0:00:05]} 41. a7 {[%emt 0:00:10]} Kd7 {[%emt 0:00:28]} 42. Qb6 {[%emt 0:00:14]} Rhh8 {[%emt 0:00:13]} 43. Qb7+ {[%emt 0:00:02]} Kd6 {[%emt 0:00:05]} 44. Rc1 {[%emt 0:00:11]} Rc8 {[%emt 0:00:39]} 45. a8=Q {[%emt 0:00:16]} Rxa8 {[%emt 0:00:10]} 46. Rxc6+ {[%emt 0:00:03]} Nxc6 {[%emt 0:00:02]} 47. Rxd5+ {[%emt 0:00:02] Kxd5} 1-0

[Event "EIRCC 2019"]
[Site "Tallinn"]
[Date "2019.12.06"]
[Round "11.31"]
[White "Martynov, Roman"]
[Black "Loginov, Valery A"]
[Result "1/2-1/2"]
[ECO "E04"]
[WhiteElo "2269"]
[BlackElo "2461"]
[Annotator "ChessBase"]
[PlyCount "95"]
[EventDate "2019.12.05"]
[EventType "swiss"]
[EventCountry "EST"]
[SourceTitle "playchess.com"]
[Source "ChessBase"]
[SourceQuality "1"]
[TimeControl "900+10"]

1. d4 {[%emt 0:00:00]} Nf6 {[%emt 0:00:00]} 2. Nf3 {[%emt 0:00:00]} d5 {[%emt 0:00:00]} 3. c4 {[%emt 0:00:00]} e6 {[%emt 0:00:02]} 4. g3 {[%emt 0:00:20]} dxc4 {[%emt 0:00:25]} 5. Bg2 {[%emt 0:00:02]} c5 {[%emt 0:00:04]} 6. O-O {[%emt 0:01:00]} Nc6 {[%emt 0:00:02]} 7. Qa4 {[%emt 0:01:23]} Bd7 {[%emt 0:00:08]} 8. dxc5 {[%emt 0:01:17]} Na5 {[%emt 0:01:14]} 9. Qc2 {[%emt 0:00:12]} Bxc5 {[%emt 0:00:21]} 10. Ne5 {[%emt 0:00:02]} Bb5 {[%emt 0:00:48]} 11. b4 {[%emt 0:03:07]} Bd4 {[%emt 0:00:23]} 12. Rd1 {[%emt 0:02:39]} Bxa1 {[%emt 0:00:23]} 13. Rxd8+ {[%emt 0:01:04]} Rxd8 {[%emt 0:00:02]} 14. Bb2 {[%emt 0:03:10]} Bxb2 {[%emt 0:00:11]} 15. Qxb2 {[%emt 0:00:01]} Nc6 {[%emt 0:00:40]} 16. Nc3 {[%emt 0:00:12]} Nxe5 {[%emt 0:00:45]} 17. Nxb5 {[%emt 0:00:01]} Rd1+ {[%emt 0:00:16]} 18. Bf1 {[%emt 0:00:00]} Nc6 {[%emt 0:00:03]} 19. Qc2 {[%emt 0:00:12]} Rd7 {[%emt 0:00:18]} 20. Qxc4 {[%emt 0:00:38]} O-O {[%emt 0:00:04]} 21. a3 {[%emt 0:00:03]} Rfd8 {[%emt 0:01:01]} 22. f3 {[%emt 0:01:04]} Rd1 {[%emt 0:00:37]} 23. Kf2 {[%emt 0:00:15]} Nd5 {[%emt 0:00:26]} 24. Qb3 {[%emt 0:00:41]} Rd2 {[%emt 0:01:37]} 25. Ke1 {[%emt 0:00:44]} Nb6 {[%emt 0:00:38]} 26. Nc3 {[%emt 0:00:12]} Nd4 {[%emt 0:01:37]} 27. Qb1 {[%emt 0:00:01]} Nc2+ {[%emt 0:00:54]} 28. Kf2 {[%emt 0:00:00]} Nxa3 {[%emt 0:00:09]} 29. Qa1 {[%emt 0:00:04]} Nbc4 {[%emt 0:00:14]} 30. Ne4 {[%emt 0:00:01]} Rc2 {[%emt 0:01:11]} 31. h4 {[%emt 0:00:20]} h6 32. g4 a6 {[%emt 0:01:29]} 33. g5 {[%emt 0:00:01]} hxg5 {[%emt 0:00:10]} 34. hxg5 {[%emt 0:00:01]} Nb5 {[%emt 0:00:11]} 35. g6 {[%emt 0:00:32]} fxg6 {[%emt 0:01:36]} 36. Nc5 {[%emt 0:00:28]} Nc3 {[%emt 0:00:18]} 37. Nxb7 {[%emt 0:00:16]} Rd1 {[%emt 0:00:24]} 38. Qxa6 {[%emt 0:00:11]} Rxf1+ {[%emt 0:00:21]} 39. Kxf1 {[%emt 0:00:01]} Ne3+ {[%emt 0:00:02]} 40. Kg1 {[%emt 0:00:30]} Nxe2+ {[%emt 0:00:07]} 41. Kf2 {[%emt 0:00:11]} Nf5 {[%emt 0:00:08]} 42. Qxe6+ {[%emt 0:00:06]} Kh7 {[%emt 0:00:01]} 43. Qxe2 {[%emt 0:00:24]} Rxe2+ {[%emt 0:00:03]} 44. Kxe2 {[%emt 0:00:01]} Kh6 {[%emt 0:00:22]} 45. Nc5 {[%emt 0:00:22]} Kg5 {[%emt 0:00:24]} 46. Kf2 {[%emt 0:00:25]} Nd4 {[%emt 0:00:13]} 47. Ne4+ {[%emt 0:00:14]} Kf4 {[%emt 0:00:06]} 48. Nc5 {[%emt 0:00:10]} 1/2-1/2

[Event "EIRCC 2019"]
[Site "Tallinn"]
[Date "2019.12.06"]
[Round "11.32"]
[White "Cerveny, Martin"]
[Black "Kanep, Siim"]
[Result "1-0"]
[ECO "D12"]
[WhiteElo "2432"]
[BlackElo "2260"]
[Annotator "NA"]
[PlyCount "67"]
[EventDate "2019.12.05"]
[EventType "swiss"]
[EventCountry "EST"]
[SourceTitle "playchess.com"]
[Source "ChessBase"]
[SourceQuality "1"]
[TimeControl "900+10"]

1. d4 {[%emt 0:00:00]} Nf6 {[%emt 0:00:00]} 2. Nf3 {[%emt 0:00:00]} d5 {[%emt 0:00:00]} 3. c4 {[%emt 0:00:00]} c6 {[%emt 0:00:00]} 4. e3 {[%emt 0:00:00]} Bf5 {[%emt 0:00:00]} 5. cxd5 {[%emt 0:00:00]} cxd5 {[%emt 0:00:02]} 6. Qb3 {[%emt 0:00:01]} Bc8 {[%emt 0:00:03]} 7. Nc3 {[%emt 0:00:15]} g6 {[%emt 0:00:23]} 8. Bb5+ {[%emt 0:00:16]} Nc6 {[%emt 0:00:48]} 9. Ne5 {[%emt 0:00:18]} Qd6 {[%emt 0:00:04]} 10. e4 {[%emt 0:01:40]} e6 {[%emt 0:03:53]} 11. Bf4 {[%emt 0:00:22]} Nh5 {[%emt 0:00:52]} 12. Be3 {[%emt 0:01:03]} Bg7 {[%emt 0:01:58]} 13. Nxc6 {[%emt 0:02:41]} bxc6 {[%emt 0:00:06]} 14. e5 {[%emt 0:00:01]} Qd7 {[%emt 0:01:33]} 15. Be2 {[%emt 0:00:02]} Bf8 {[%emt 0:00:14]} 16. Na4 {[%emt 0:00:36]} Ng7 {[%emt 0:01:35]} 17. Qc3 {[%emt 0:01:06]} Rb8 {[%emt 0:00:10]} 18. a3 {[%emt 0:00:02]} Nf5 {[%emt 0:00:07]} 19. Bg5 {[%emt 0:00:04]} Be7 {[%emt 0:00:36]} 20. f4 {[%emt 0:01:21]} Bxg5 {[%emt 0:00:16]} 21. fxg5 {[%emt 0:00:02]} O-O {[%emt 0:00:19]} 22. g4 {[%emt 0:00:03]} Ng7 {[%emt 0:00:30]} 23. Nc5 {[%emt 0:00:02]} Qe7 {[%emt 0:00:01]} 24. h4 {[%emt 0:00:07]} Ne8 {[%emt 0:00:03]} 25. O-O-O {[%emt 0:01:00]} Nc7 {[%emt 0:00:03]} 26. Rdf1 {[%emt 0:00:03]} Rb6 {[%emt 0:00:09]} 27. Rf6 {[%emt 0:00:12]} Bd7 {[%emt 0:00:58]} 28. h5 {[%emt 0:00:21]} Rfb8 {[%emt 0:00:20]} 29. b3 {[%emt 0:00:46]} Ne8 {[%emt 0:01:06]} 30. Rhf1 {[%emt 0:00:40]} Nxf6 {[%emt 0:00:35]} 31. gxf6 {[%emt 0:00:04]} Qf8 {[%emt 0:01:29]} 32. g5 {[%emt 0:00:02]} Bc8 {[%emt 0:00:13]} 33. hxg6 {[%emt 0:00:03]} fxg6 {[%emt 0:00:08]} 34. f7+ {[%emt 0:00:20]} 1-0

[Event "EIRCC 2019"]
[Site "Tallinn"]
[Date "2019.12.06"]
[Round "11.33"]
[White "Mohr, Georg"]
[Black "Nestor, Kaarel"]
[Result "1-0"]
[ECO "A16"]
[WhiteElo "2424"]
[BlackElo "2255"]
[Annotator "NA"]
[PlyCount "131"]
[EventDate "2019.12.05"]
[EventType "swiss"]
[EventCountry "EST"]
[SourceTitle "playchess.com"]
[Source "ChessBase"]
[SourceQuality "1"]
[TimeControl "900+10"]

1. c4 {[%emt 0:00:00]} Nf6 {[%emt 0:00:00]} 2. Nc3 {[%emt 0:00:00]} e5 {[%emt 0:00:05]} 3. Nf3 {[%emt 0:00:00]} d6 {[%emt 0:00:03]} 4. g3 {[%emt 0:00:11]} g6 {[%emt 0:00:01]} 5. Bg2 {[%emt 0:00:04]} Bg7 {[%emt 0:00:01]} 6. O-O {[%emt 0:00:02]} O-O {[%emt 0:00:02]} 7. d3 {[%emt 0:00:05]} Nc6 {[%emt 0:00:13]} 8. Rb1 {[%emt 0:00:05]} Be6 {[%emt 0:00:17]} 9. b4 {[%emt 0:00:43]} Qc8 {[%emt 0:00:09]} 10. b5 {[%emt 0:00:07]} Nd4 {[%emt 0:00:36]} 11. Ng5 {[%emt 0:02:53]} Bd7 {[%emt 0:00:01]} 12. e3 {[%emt 0:00:04]} Ne6 {[%emt 0:00:03]} 13. Nf3 {[%emt 0:00:06]} c6 {[%emt 0:02:23]} 14. bxc6 {[%emt 0:00:18]} Bxc6 {[%emt 0:00:02]} 15. Ba3 {[%emt 0:00:20]} Rd8 {[%emt 0:00:02]} 16. e4 {[%emt 0:00:15]} b6 {[%emt 0:01:25]} 17. Nd5 {[%emt 0:00:35]} Bxd5 {[%emt 0:00:18]} 18. exd5 {[%emt 0:00:04]} Nc5 {[%emt 0:00:02]} 19. d4 {[%emt 0:00:17]} exd4 {[%emt 0:00:12]} 20. Nxd4 {[%emt 0:00:02]} Qa6 {[%emt 0:00:01]} 21. Nb5 {[%emt 0:00:56]} Rab8 {[%emt 0:00:35]} 22. Qc2 {[%emt 0:00:30]} Ne8 {[%emt 0:02:10]} 23. Bc1 {[%emt 0:00:29]} Qb7 {[%emt 0:00:20]} 24. Be3 {[%emt 0:00:04]} Qd7 {[%emt 0:01:10]} 25. Nd4 {[%emt 0:00:24]} Bxd4 {[%emt 0:01:23]} 26. Bxd4 {[%emt 0:00:02]} Rbc8 {[%emt 0:00:01]} 27. Ba1 {[%emt 0:00:16]} Rc7 {[%emt 0:00:10]} 28. Rfe1 {[%emt 0:00:06]} f6 {[%emt 0:00:11]} 29. h4 {[%emt 0:00:05]} Qf7 {[%emt 0:00:16]} 30. Qc3 {[%emt 0:00:35]} Qg7 {[%emt 0:01:30]} 31. h5 {[%emt 0:01:08]} Nd7 {[%emt 0:00:21]} 32. Bh3 {[%emt 0:00:42]} Ne5 {[%emt 0:00:06]} 33. Be6+ {[%emt 0:00:04]} Kf8 {[%emt 0:00:02]} 34. Re4 {[%emt 0:00:36]} f5 {[%emt 0:00:35]} 35. Rxe5 {[%emt 0:01:11]} dxe5 {[%emt 0:00:03]} 36. hxg6 {[%emt 0:00:29]} hxg6 {[%emt 0:00:03]} 37. Qe3 {[%emt 0:00:14]} Rxc4 {[%emt 0:00:33]} 38. Bxe5 {[%emt 0:00:04]} Nf6 {[%emt 0:00:24]} 39. Qg5 {[%emt 0:00:43]} Ke7 {[%emt 0:00:00]} 40. Bxf5 {[%emt 0:00:40]} Rxd5 {[%emt 0:00:21]} 41. Bxf6+ {[%emt 0:00:38]} Qxf6 {[%emt 0:00:02]} 42. Re1+ {[%emt 0:00:02]} Kf7 {[%emt 0:00:00]} 43. Bxg6+ {[%emt 0:00:03]} Qxg6 {[%emt 0:00:45]} 44. Re7+ {[%emt 0:00:29]} Kf8 {[%emt 0:00:02]} 45. Qxg6 {[%emt 0:00:03]} Kxe7 {[%emt 0:00:01]} 46. Qg7+ {[%emt 0:00:07]} Kd6 {[%emt 0:00:00]} 47. Qxa7 {[%emt 0:00:01]} Rc6 {[%emt 0:00:16]} 48. Qb8+ {[%emt 0:00:08]} Kc5 {[%emt 0:00:01]} 49. Qf8+ {[%emt 0:00:09]} Kb5 {[%emt 0:00:03]} 50. Kg2 {[%emt 0:00:12]} Rdc5 {[%emt 0:00:08]} 51. g4 {[%emt 0:00:05]} Rc4 {[%emt 0:00:10]} 52. Kg3 {[%emt 0:00:23]} R6c5 {[%emt 0:00:01]} 53. f3 {[%emt 0:00:25]} Ka4 {[%emt 0:00:06]} 54. Qd6 {[%emt 0:00:25]} b5 {[%emt 0:00:02]} 55. Qd1+ {[%emt 0:00:12]} Rc2 {[%emt 0:00:06]} 56. Qb1 {[%emt 0:01:32]} b4 {[%emt 0:00:07]} 57. f4 {[%emt 0:00:38]} R5c3+ {[%emt 0:00:14]} 58. Kh4 {[%emt 0:00:02]} Ka3 {[%emt 0:00:02]} 59. f5 {[%emt 0:00:07]} Rxa2 {[%emt 0:00:02]} 60. f6 {[%emt 0:00:06]} b3 {[%emt 0:00:02]} 61. Qf5 {[%emt 0:00:32]} Rh2+ {[%emt 0:00:18]} 62. Kg5 {[%emt 0:00:02]} b2 {[%emt 0:00:17]} 63. f7 {[%emt 0:00:13]} Rf2 {[%emt 0:00:37]} 64. f8=Q+ {[%emt 0:00:06]} Kb3 {[%emt 0:00:06]} 65. Qb5+ {[%emt 0:00:11]} Ka2 {[%emt 0:00:05]} 66. Qxf2 1-0